[Event "ESP-ch Rapid 2018"]
[Site "Linares"]
[Date "2018.08.19"]
[Round "3"]
[White "Domingo Nunez, Alejandro"]
[Black "Beltran De Heredia E, Miguel"]
[Result "1-0"]
[ECO "B21"]
[WhiteElo "2373"]
[BlackElo "2229"]
[Annotator "NA"]
[PlyCount "59"]
[EventDate "2018.08.19"]
[EventType "team-tourn"]
[EventCountry "ESP"]
[SourceTitle "playchess.com"]
[Source "ChessBase"]
[SourceQuality "1"]
[TimeControl "900+5"]

1. e4 {[%emt 0:00:00]} c5 {[%emt 0:00:00]} 2. d4 {[%emt 0:00:00]} cxd4 3. c3 Nf6 {[%emt 0:00:02]} 4. e5 {[%emt 0:00:01]} Nd5 {[%emt 0:00:01]} 5. Nf3 {[%emt 0:00:02]} e6 {[%emt 0:00:28]} 6. cxd4 {[%emt 0:00:02]} b6 {[%emt 0:00:02]} 7. Nc3 {[%emt 0:00:14]} Nxc3 {[%emt 0:00:06]} 8. bxc3 {[%emt 0:00:01]} Qc7 {[%emt 0:00:02]} 9. Bd2 {[%emt 0:00:01]} Bb7 {[%emt 0:00:04]} 10. Bd3 {[%emt 0:00:01]} d6 {[%emt 0:00:03]} 11. O-O {[%emt 0:00:08]} Nd7 {[%emt 0:00:03]} 12. Ng5 {[%emt 0:00:08]} dxe5 {[%emt 0:01:14]} 13. Qh5 {[%emt 0:03:10]} g6 {[%emt 0:00:01]} 14. Qh3 {[%emt 0:00:06]} Be7 {[%emt 0:00:02]} 15. Rae1 {[%emt 0:00:20]} Bxg5 {[%emt 0:03:25]} 16. Bxg5 {[%emt 0:00:02]} f5 {[%emt 0:00:36]} 17. Qh6 {[%emt 0:01:12]} Kf7 {[%emt 0:02:11]} 18. Bb5 {[%emt 0:00:31]} Bc6 {[%emt 0:02:19]} 19. Bxc6 {[%emt 0:00:53]} Qxc6 {[%emt 0:00:02]} 20. dxe5 {[%emt 0:00:05]} Qxc3 {[%emt 0:00:27]} 21. Rc1 {[%emt 0:04:31]} Qxe5 {[%emt 0:00:12]} 22. Rfe1 {[%emt 0:00:18]} Qa5 {[%emt 0:01:40]} 23. Red1 {[%emt 0:00:17]} Nc5 {[%emt 0:00:26]} 24. Rxc5 {[%emt 0:01:00]} bxc5 {[%emt 0:00:37]} 25. Rd7+ {[%emt 0:00:14]} Ke8 {[%emt 0:00:02]} 26. Re7+ {[%emt 0:00:01]} Kd8 {[%emt 0:00:01]} 27. Rxa7+ {[%emt 0:01:06]} Kc8 {[%emt 0:00:00]} 28. Rxa5 {[%emt 0:00:02]} Rxa5 {[%emt 0:00:02]} 29. Qg7 {[%emt 0:00:07]} Re8 {[%emt 0:00:01]} 30. Bf4 {[%emt 0:00:05]} 1-0

[Event "ESP-ch Rapid 2018"]
[Site "Linares"]
[Date "2018.08.19"]
[Round "3"]
[White "Gomez Sanjuan, Hector Fernando"]
[Black "Matnadze, Ana"]
[Result "0-1"]
[ECO "E10"]
[WhiteElo "2146"]
[BlackElo "2378"]
[Annotator "NA"]
[PlyCount "106"]
[EventDate "2018.08.19"]
[EventType "team-tourn"]
[EventCountry "ESP"]
[SourceTitle "playchess.com"]
[Source "ChessBase"]
[SourceQuality "1"]
[TimeControl "900+5"]

1. d4 {[%emt 0:00:00]} Nf6 {[%emt 0:00:00]} 2. c4 {[%emt 0:00:02]} e6 {[%emt 0:00:00]} 3. Nf3 {[%emt 0:00:04]} d5 {[%emt 0:00:01]} 4. cxd5 {[%emt 0:00:01]} exd5 {[%emt 0:00:01]} 5. Nc3 {[%emt 0:00:02]} c6 {[%emt 0:00:02]} 6. Bg5 {[%emt 0:00:03]} Nbd7 {[%emt 0:00:03]} 7. e3 {[%emt 0:00:06]} Be7 {[%emt 0:00:02]} 8. Bd3 {[%emt 0:00:02]} Nf8 {[%emt 0:00:01]} 9. O-O {[%emt 0:00:11]} Ne6 {[%emt 0:00:01]} 10. Bh4 {[%emt 0:00:02]} g6 {[%emt 0:00:02]} 11. Rb1 {[%emt 0:00:21]} a5 {[%emt 0:00:03]} 12. a3 {[%emt 0:00:11]} Ng7 {[%emt 0:00:02]} 13. b4 {[%emt 0:00:06]} axb4 {[%emt 0:00:03]} 14. axb4 {[%emt 0:00:01]} O-O {[%emt 0:00:04]} 15. b5 {[%emt 0:00:53]} cxb5 {[%emt 0:01:07]} 16. Rxb5 {[%emt 0:00:28]} Ne4 {[%emt 0:01:28]} 17. Rxd5 {[%emt 0:01:37]} Nxc3 {[%emt 0:00:30]} 18. Rxd8 {[%emt 0:00:04]} Nxd1 {[%emt 0:00:03]} 19. Rxf8+ {[%emt 0:00:46]} Kxf8 {[%emt 0:00:52]} 20. Bxe7+ {[%emt 0:00:11]} Kxe7 {[%emt 0:00:02]} 21. Rxd1 {[%emt 0:00:01]} Ra3 {[%emt 0:00:19]} 22. Bc4 {[%emt 0:00:37]} Rc3 {[%emt 0:00:37]} 23. Bf1 {[%emt 0:00:35]} Bf5 {[%emt 0:00:10]} 24. Ne5 {[%emt 0:00:32]} Be4 {[%emt 0:00:51]} 25. f3 {[%emt 0:00:21]} Bd5 {[%emt 0:00:01]} 26. e4 {[%emt 0:00:12]} Ba2 {[%emt 0:00:30]} 27. d5 {[%emt 0:00:47]} Ne8 {[%emt 0:00:14]} 28. Rd2 {[%emt 0:00:12]} Bb3 {[%emt 0:00:38]} 29. Nd3 {[%emt 0:00:12]} Nd6 {[%emt 0:00:22]} 30. Nc5 {[%emt 0:00:14]} Rxc5 {[%emt 0:00:03]} 31. e5 {[%emt 0:00:04]} Nc4 {[%emt 0:00:25]} 32. Rd3 {[%emt 0:00:26]} Ba2 {[%emt 0:00:39]} 33. f4 {[%emt 0:00:07]} b5 {[%emt 0:00:16]} 34. g3 {[%emt 0:00:06]} b4 {[%emt 0:00:13]} 35. d6+ {[%emt 0:00:03]} Kd8 {[%emt 0:00:06]} 36. Rd4 {[%emt 0:00:20]} Ne3 {[%emt 0:01:13]} 37. Bh3 {[%emt 0:00:34]} Rc4 {[%emt 0:00:10]} 38. Rd3 {[%emt 0:00:08]} Nf5 {[%emt 0:00:19]} 39. Bf1 {[%emt 0:01:31]} b3 {[%emt 0:00:31]} 40. Rd1 {[%emt 0:00:20]} Rd4 {[%emt 0:00:24]} 41. Rxd4 {[%emt 0:00:48]} Nxd4 {[%emt 0:00:01]} 42. Bc4 {[%emt 0:00:01]} Bb1 {[%emt 0:01:43]} 43. Bxf7 {[%emt 0:00:19]} b2 {[%emt 0:00:28]} 44. e6 {[%emt 0:00:04]} Nxe6 {[%emt 0:00:22]} 45. Bxe6 {[%emt 0:00:01]} Bf5 {[%emt 0:00:09]} 46. Ba2 {[%emt 0:00:04]} Kd7 {[%emt 0:00:08]} 47. g4 {[%emt 0:00:14]} b1=Q+ {[%emt 0:00:05]} 48. Bxb1 {[%emt 0:00:02]} Bxb1 {[%emt 0:00:01]} 49. Kf2 {[%emt 0:00:04]} Kxd6 {[%emt 0:00:04]} 50. Kf3 {[%emt 0:00:04]} Kd5 {[%emt 0:00:13]} 51. h4 {[%emt 0:00:15]} Kd4 {[%emt 0:00:15]} 52. h5 {[%emt 0:00:31]} gxh5 {[%emt 0:00:09]} 53. gxh5 {[%emt 0:00:04]} Bf5 {[%emt 0:00:03]} 0-1

[Event "ESP-ch Rapid 2018"]
[Site "Linares"]
[Date "2018.08.19"]
[Round "3"]
[White "Bento Iglesias, Pablo"]
[Black "Cuevas Fernandez, Jose Alberto"]
[Result "1/2-1/2"]
[ECO "B22"]
[WhiteElo "2007"]
[BlackElo "2147"]
[Annotator "NA"]
[PlyCount "81"]
[EventDate "2018.08.19"]
[EventType "team-tourn"]
[EventCountry "ESP"]
[SourceTitle "playchess.com"]
[Source "ChessBase"]
[SourceQuality "1"]
[TimeControl "900+5"]

1. e4 {[%emt 0:00:00]} c5 {[%emt 0:00:00]} 2. c3 {[%emt 0:00:00]} Nf6 {[%emt 0:00:00]} 3. e5 {[%emt 0:00:00]} Nd5 {[%emt 0:00:01]} 4. d4 {[%emt 0:00:00]} cxd4 5. Nf3 {[%emt 0:00:00]} e6 {[%emt 0:00:03]} 6. cxd4 {[%emt 0:00:00]} d6 {[%emt 0:00:01]} 7. Bc4 {[%emt 0:00:01]} Nc6 {[%emt 0:00:24]} 8. O-O {[%emt 0:00:04]} Be7 {[%emt 0:00:02]} 9. Qe2 {[%emt 0:00:05]} Nb6 {[%emt 0:00:06]} 10. Bb3 {[%emt 0:00:02]} a5 {[%emt 0:00:17]} 11. exd6 {[%emt 0:02:28]} Qxd6 {[%emt 0:00:12]} 12. Nc3 {[%emt 0:00:02]} O-O {[%emt 0:00:11]} 13. Nb5 {[%emt 0:00:16]} Qd7 {[%emt 0:02:01]} 14. a4 {[%emt 0:01:19]} Bf6 {[%emt 0:00:29]} 15. Bf4 {[%emt 0:02:13]} Nd5 {[%emt 0:01:54]} 16. Bxd5 {[%emt 0:02:55]} exd5 {[%emt 0:00:03]} 17. Rfe1 {[%emt 0:00:32]} Qf5 {[%emt 0:00:32]} 18. Bd6 {[%emt 0:00:23]} Be6 {[%emt 0:00:30]} 19. Bxf8 {[%emt 0:01:56]} Rxf8 {[%emt 0:00:01]} 20. Nd6 {[%emt 0:00:44]} Qf4 {[%emt 0:00:24]} 21. Nxb7 {[%emt 0:00:11]} Bg4 {[%emt 0:00:16]} 22. Qe3 {[%emt 0:00:16]} Qb8 23. Nc5 {[%emt 0:01:09]} Bxf3 {[%emt 0:00:27]} 24. Qxf3 {[%emt 0:00:13]} Nxd4 {[%emt 0:00:29]} 25. Qxd5 {[%emt 0:00:41]} Nc2 {[%emt 0:00:40]} 26. Nd7 {[%emt 0:00:01]} Qd8 {[%emt 0:00:01]} 27. Nxf6+ {[%emt 0:01:14]} Qxf6 {[%emt 0:00:02]} 28. Qxa5 {[%emt 0:00:05]} Nxa1 {[%emt 0:00:05]} 29. Rxa1 {[%emt 0:00:04]} Qxb2 {[%emt 0:00:02]} 30. Re1 {[%emt 0:00:08]} h6 {[%emt 0:00:13]} 31. g3 {[%emt 0:00:03]} Rc8 {[%emt 0:00:05]} 32. Qf5 {[%emt 0:00:08]} Qc3 {[%emt 0:00:16]} 33. Re7 {[%emt 0:00:07]} Rf8 {[%emt 0:00:50]} 34. Qd5 {[%emt 0:00:03]} Qf6 {[%emt 0:00:20]} 35. Qe5 {[%emt 0:00:18]} Qc6 {[%emt 0:00:13]} 36. a5 {[%emt 0:00:02]} Ra8 {[%emt 0:00:02]} 37. Rc7 {[%emt 0:00:11]} Qf3 {[%emt 0:00:24]} 38. Re7 {[%emt 0:00:10]} Qc6 {[%emt 0:00:29]} 39. Rc7 {[%emt 0:00:02]} Qf3 {[%emt 0:00:01]} 40. Rc3 {[%emt 0:00:06]} Qb7 {[%emt 0:00:28]} 41. Rc7 {[%emt 0:00:06]} 1/2-1/2

[Event "ESP-ch Rapid 2018"]
[Site "Linares"]
[Date "2018.08.19"]
[Round "3"]
[White "Alonso, Jose Antonio"]
[Black "Cuesta Bustos, Raul"]
[Result "0-1"]
[ECO "C02"]
[WhiteElo "1920"]
[BlackElo "2126"]
[Annotator "NA RC"]
[PlyCount "136"]
[EventDate "2018.08.19"]
[EventType "team-tourn"]
[EventCountry "ESP"]
[SourceTitle "playchess.com"]
[Source "ChessBase"]
[SourceQuality "1"]
[TimeControl "900+5"]

1. e4 {[%emt 0:00:00]} e6 {[%emt 0:00:00]} 2. d4 {[%emt 0:00:00]} d5 {[%emt 0:00:00]} 3. e5 {[%emt 0:00:00]} c5 {[%emt 0:00:00]} 4. c3 {[%emt 0:00:00]} Qb6 {[%emt 0:00:00]} 5. Nf3 {[%emt 0:00:01]} Nc6 {[%emt 0:00:22]} 6. Bd3 {[%emt 0:00:01]} Bd7 {[%emt 0:00:05]} 7. Bc2 {[%emt 0:00:01]} cxd4 {[%emt 0:00:10]} 8. cxd4 {[%emt 0:00:00]} Nb4 {[%emt 0:00:13]} 9. O-O {[%emt 0:00:08]} Nxc2 {[%emt 0:00:05]} 10. Qxc2 {[%emt 0:00:02]} Rc8 {[%emt 0:00:08]} 11. Nc3 {[%emt 0:00:02]} Ne7 {[%emt 0:00:15]} 12. Be3 {[%emt 0:00:39]} Nf5 {[%emt 0:00:32]} 13. a3 {[%emt 0:00:16]} Be7 {[%emt 0:00:15]} 14. Rac1 {[%emt 0:00:06]} O-O {[%emt 0:00:22]} 15. Qd2 {[%emt 0:00:02]} Rc4 {[%emt 0:00:33]} 16. g4 {[%emt 0:00:12]} Nxe3 {[%emt 0:02:05]} 17. fxe3 {[%emt 0:00:01]} f5 {[%emt 0:00:37]} 18. g5 {[%emt 0:00:25]} Rfc8 {[%emt 0:00:45]} 19. Qf2 {[%emt 0:01:02]} Bxa3 {[%emt 0:01:39]} 20. Nxd5 {[%emt 0:03:32]} Qxb2 {[%emt 0:00:03]} 21. Qxb2 {[%emt 0:00:05]} Bxb2 {[%emt 0:00:02]} 22. Rb1 {[%emt 0:00:33]} exd5 {[%emt 0:02:21]} 23. Rxb2 b6 {[%emt 0:00:50]} 24. Rff2 {[%emt 0:00:44]} Rc3 {[%emt 0:00:19]} 25. Rfe2 {[%emt 0:00:06]} f4 {[%emt 0:00:19]} 26. Kf2 {[%emt 0:00:22]} Bg4 {[%emt 0:00:15]} 27. Rb5 {[%emt 0:01:22]} Rxe3 {[%emt 0:00:25]} 28. Rxe3 {[%emt 0:00:42]} fxe3+ {[%emt 0:00:01]} 29. Kg3 {[%emt 0:00:39]} Be6 {[%emt 0:00:26]} 30. Rb3 {[%emt 0:00:53]} e2 {[%emt 0:00:03]} 31. Kf2 {[%emt 0:00:17]} Rc2 {[%emt 0:00:07]} 32. Ne1 {[%emt 0:00:08]} Rc4 {[%emt 0:00:10]} 33. Ke3 {[%emt 0:00:18]} Kf7 {[%emt 0:00:20]} 34. Rb2 {[%emt 0:00:25]} Bg4 {[%emt 0:00:10]} 35. h3 {[%emt 0:02:08]} Rc3+ {[%emt 0:00:43]} 36. Kd2 {[%emt 0:00:00]} Rxh3 {[%emt 0:00:19]} 37. Rc2 {[%emt 0:00:01]} a5 {[%emt 0:00:21]} 38. Rb2 {[%emt 0:00:11]} a4 {[%emt 0:00:25]} 39. Rxb6 {[%emt 0:00:02]} a3 {[%emt 0:00:01]} 40. Ra6 {[%emt 0:00:30]} Rb3 {[%emt 0:00:17]} 41. Ng2 {[%emt 0:01:48]} Rb1 {[%emt 0:00:40]} 42. Rxa3 {[%emt 0:00:03]} Rd1+ {[%emt 0:00:02]} 43. Ke3 {[%emt 0:00:11]} e1=Q+ {[%emt 0:00:02]} 44. Nxe1 {[%emt 0:00:00]} Rxe1+ {[%emt 0:00:01]} 45. Kf4 {[%emt 0:00:01]} Re4+ {[%emt 0:00:03]} 46. Kg3 {[%emt 0:00:01]} Rxd4 {[%emt 0:00:02]} 47. Ra7+ {[%emt 0:00:04]} Kg6 {[%emt 0:00:02]} 48. Ra6+ {[%emt 0:00:14]} Kxg5 {[%emt 0:00:05]} 49. Ra7 {[%emt 0:00:19]} g6 {[%emt 0:00:37]} 50. Rxh7 {[%emt 0:00:02]} Re4 {[%emt 0:00:01]} 51. Re7 {[%emt 0:00:04]} Kf5 {[%emt 0:00:20]} 52. e6 {[%emt 0:00:24]} Rxe6 {[%emt 0:00:03]} 53. Rd7 {[%emt 0:00:04]} Re5 {[%emt 0:00:06]} 54. Rd6 {[%emt 0:00:02]} g5 {[%emt 0:00:15]} 55. Rd8 {[%emt 0:00:05]} Re3+ {[%emt 0:00:03]} 56. Kg2 {[%emt 0:00:03]} Ke4 {[%emt 0:00:26]} 57. Rg8 {[%emt 0:00:04]} Bf3+ {[%emt 0:00:02]} 58. Kf1 {[%emt 0:00:06]} g4 {[%emt 0:00:02]} 59. Kf2 {[%emt 0:00:04]} Kd3 {[%emt 0:00:05]} 60. Rg5 {[%emt 0:00:06]} d4 {[%emt 0:00:03]} 61. Ra5 {[%emt 0:00:02]} Re2+ {[%emt 0:00:02]} 62. Kf1 {[%emt 0:00:03]} Ke4 {[%emt 0:00:03]} 63. Ra4 {[%emt 0:00:05]} g3 {[%emt 0:00:04]} 64. Ra1 {[%emt 0:00:08]} d3 {[%emt 0:00:16]} 65. Ra4+ {[%emt 0:00:15]} Ke3 {[%emt 0:00:03]} 66. Ra1 {[%emt 0:00:03]} Rd2 {[%emt 0:00:23]} 67. Re1+ {[%emt 0:00:03]} Be2+ {[%emt 0:00:05]} 68. Kg1 {[%emt 0:00:02]} Rd1 {[%emt 0:00:03]} 0-1

[Event "ESP-ch Rapid 2018"]
[Site "Linares"]
[Date "2018.08.19"]
[Round "4"]
[White "Gonzalez Fernandez, Manuel Jesus"]
[Black "Ruiz Casado, Francisco Javier"]
[Result "0-1"]
[ECO "B06"]
[WhiteElo "1340"]
[BlackElo "1975"]
[Annotator "NA RC"]
[PlyCount "132"]
[EventDate "2018.08.19"]
[EventType "team-tourn"]
[EventCountry "ESP"]
[SourceTitle "playchess.com"]
[Source "ChessBase"]
[SourceQuality "1"]
[TimeControl "900+5"]

1. e4 {[%emt 0:00:00]} g6 {[%emt 0:00:00]} 2. d4 {[%emt 0:00:00]} Bg7 {[%emt 0:00:00]} 3. Nf3 {[%emt 0:00:00]} c6 {[%emt 0:00:14]} 4. Nc3 {[%emt 0:00:03]} d5 {[%emt 0:00:13]} 5. exd5 {[%emt 0:00:17]} cxd5 {[%emt 0:00:15]} 6. Bd3 {[%emt 0:00:04]} Nf6 {[%emt 0:00:07]} 7. O-O {[%emt 0:00:48]} Bg4 {[%emt 0:00:13]} 8. h3 {[%emt 0:00:02]} Bxf3 {[%emt 0:00:02]} 9. Qxf3 {[%emt 0:00:02]} O-O {[%emt 0:00:07]} 10. Bf4 {[%emt 0:00:07]} Nc6 {[%emt 0:00:05]} 11. Be3 {[%emt 0:00:12]} Nb4 {[%emt 0:00:17]} 12. Qe2 {[%emt 0:00:26]} Rc8 {[%emt 0:00:09]} 13. a3 {[%emt 0:00:04]} Nxd3 {[%emt 0:00:03]} 14. Qxd3 {[%emt 0:00:03]} Qb6 {[%emt 0:00:15]} 15. Rab1 {[%emt 0:00:11]} Qc6 {[%emt 0:00:19]} 16. Rfc1 {[%emt 0:00:07]} Rfd8 {[%emt 0:00:07]} 17. Qb5 {[%emt 0:00:29]} Rd7 {[%emt 0:02:09]} 18. f3 {[%emt 0:00:33]} Qxb5 {[%emt 0:01:17]} 19. Nxb5 {[%emt 0:00:02]} a6 {[%emt 0:00:04]} 20. Nc3 {[%emt 0:00:03]} Rdc7 {[%emt 0:00:03]} 21. g4 {[%emt 0:00:20]} e6 {[%emt 0:00:02]} 22. Kf2 {[%emt 0:00:14]} Ne8 {[%emt 0:00:25]} 23. Ke2 {[%emt 0:00:10]} Rc6 {[%emt 0:00:09]} 24. Kd3 {[%emt 0:00:16]} Nd6 {[%emt 0:00:12]} 25. Bf2 {[%emt 0:01:03]} Bh6 {[%emt 0:00:12]} 26. Be3 {[%emt 0:00:11]} Bxe3 {[%emt 0:00:21]} 27. Kxe3 {[%emt 0:00:01]} Nc4+ {[%emt 0:00:02]} 28. Ke2 {[%emt 0:00:18]} Nxb2 {[%emt 0:00:58]} 29. Nxd5 {[%emt 0:00:22]} Rxc2+ {[%emt 0:00:22]} 30. Rxc2 {[%emt 0:00:03]} Rxc2+ {[%emt 0:00:02]} 31. Ke3 {[%emt 0:00:07]} exd5 {[%emt 0:00:02]} 32. f4 {[%emt 0:00:10]} b5 {[%emt 0:00:02]} 33. h4 {[%emt 0:00:01]} Nc4+ {[%emt 0:00:03]} 34. Kd3 {[%emt 0:00:02]} Rf2 {[%emt 0:00:09]} 35. a4 {[%emt 0:00:08]} Rxf4 {[%emt 0:00:16]} 36. Ke2 {[%emt 0:00:05]} Rxd4 {[%emt 0:00:09]} 37. axb5 {[%emt 0:00:04]} axb5 {[%emt 0:00:03]} 38. Rxb5 {[%emt 0:00:02]} Rxg4 {[%emt 0:00:07]} 39. Rxd5 {[%emt 0:00:02]} Rxh4 {[%emt 0:00:02]} 40. Kf3 {[%emt 0:00:01]} Kg7 {[%emt 0:00:03]} 41. Kg3 {[%emt 0:00:01]} Re4 {[%emt 0:00:04]} 42. Kf3 {[%emt 0:00:02]} Re6 {[%emt 0:00:03]} 43. Rd4 {[%emt 0:00:04]} Ne5+ {[%emt 0:00:03]} 44. Kf4 {[%emt 0:00:04]} Kf6 {[%emt 0:00:04]} 45. Rd1 {[%emt 0:00:06]} g5+ {[%emt 0:00:01]} 46. Kg3 {[%emt 0:00:02]} Ng6 {[%emt 0:00:02]} 47. Rf1+ {[%emt 0:00:01]} Nf4 {[%emt 0:00:02]} 48. Kg4 {[%emt 0:00:03]} Kg6 {[%emt 0:00:01]} 49. Kg3 {[%emt 0:00:02]} h5 {[%emt 0:00:01]} 50. Rf2 {[%emt 0:00:01]} Re3+ {[%emt 0:00:02]} 51. Kh2 {[%emt 0:00:04]} Re2 {[%emt 0:00:06]} 52. Rxe2 {[%emt 0:00:10]} Nxe2 {[%emt 0:00:02]} 53. Kg2 {[%emt 0:00:02]} h4 {[%emt 0:00:02]} 54. Kh3 {[%emt 0:00:01]} Kh5 {[%emt 0:00:02]} 55. Kh2 {[%emt 0:00:01]} Kg4 {[%emt 0:00:03]} 56. Kh1 {[%emt 0:00:01]} Nd4 {[%emt 0:00:02]} 57. Kg2 {[%emt 0:00:01]} h3+ {[%emt 0:00:04]} 58. Kh2 {[%emt 0:00:01]} Kh4 {[%emt 0:00:01]} 59. Kh1 {[%emt 0:00:01]} Kg3 {[%emt 0:00:01]} 60. Kg1 {[%emt 0:00:01]} Kf3 {[%emt 0:00:05]} 61. Kh2 {[%emt 0:00:01]} g4 {[%emt 0:00:01]} 62. Kh1 {[%emt 0:00:01]} g3 {[%emt 0:00:01]} 63. Kg1 {[%emt 0:00:01]} g2 {[%emt 0:00:13]} 64. Kh2 {[%emt 0:00:01]} Ne2 {[%emt 0:00:12]} 65. Kxh3 {[%emt 0:00:01]} g1=Q {[%emt 0:00:07]} 66. Kh4 {[%emt 0:00:03]} Qg4# 0-1

[Event "ESP-ch Rapid 2018"]
[Site "Linares"]
[Date "2018.08.19"]
[Round "5"]
[White "Salgado Lopez, Ivan"]
[Black "Ibarra Jerez, Jose Carlos"]
[Result "0-1"]
[ECO "C70"]
[WhiteElo "2643"]
[BlackElo "2570"]
[Annotator "RC"]
[PlyCount "98"]
[EventDate "2018.08.19"]
[EventType "team-tourn"]
[EventCountry "ESP"]
[SourceTitle "playchess.com"]
[Source "ChessBase"]
[SourceQuality "1"]
[TimeControl "900+5"]

1. e4 {[%emt 0:00:00]} e5 {[%emt 0:00:00]} 2. Nf3 {[%emt 0:00:00]} Nc6 {[%emt 0:00:00]} 3. Bb5 {[%emt 0:00:04]} a6 {[%emt 0:00:02]} 4. Ba4 {[%emt 0:00:02]} g6 {[%emt 0:00:09]} 5. c3 {[%emt 0:00:17]} d6 {[%emt 0:00:03]} 6. O-O {[%emt 0:00:06]} Bg7 {[%emt 0:00:04]} 7. Re1 {[%emt 0:00:14]} Nf6 {[%emt 0:00:21]} 8. d3 {[%emt 0:00:28]} O-O {[%emt 0:00:18]} 9. h3 {[%emt 0:00:07]} Bd7 {[%emt 0:00:55]} 10. Be3 {[%emt 0:00:05]} h6 {[%emt 0:00:43]} 11. Nbd2 {[%emt 0:00:08]} Re8 {[%emt 0:00:55]} 12. Bb3 {[%emt 0:00:20]} Na5 {[%emt 0:01:12]} 13. Bc2 {[%emt 0:00:02]} d5 {[%emt 0:00:02]} 14. b4 {[%emt 0:02:35]} Nc6 {[%emt 0:00:05]} 15. Nb3 {[%emt 0:00:14]} b6 {[%emt 0:01:12]} 16. a4 {[%emt 0:00:16]} Qc8 {[%emt 0:02:12]} 17. Bd2 {[%emt 0:00:40]} Qb7 {[%emt 0:00:57]} 18. a5 {[%emt 0:01:41]} Rad8 {[%emt 0:00:28]} 19. Qc1 {[%emt 0:00:03]} Kh7 {[%emt 0:00:13]} 20. Qa3 {[%emt 0:00:02]} Bc8 {[%emt 0:00:21]} 21. Rad1 {[%emt 0:00:48]} Be6 {[%emt 0:00:43]} 22. axb6 {[%emt 0:00:38]} cxb6 {[%emt 0:00:02]} 23. Be3 {[%emt 0:00:09]} Bf8 {[%emt 0:00:21]} 24. Qa1 {[%emt 0:00:16]} Bg7 {[%emt 0:00:12]} 25. Qa4 {[%emt 0:00:16]} Bd7 {[%emt 0:00:21]} 26. Qa3 {[%emt 0:00:14]} Bf8 {[%emt 0:00:07]} 27. Qb2 {[%emt 0:00:02]} Bg7 {[%emt 0:00:06]} 28. Qb1 {[%emt 0:00:15]} Na7 {[%emt 0:00:19]} 29. c4 {[%emt 0:00:54]} d4 {[%emt 0:00:44]} 30. Bd2 {[%emt 0:00:05]} Bf8 {[%emt 0:00:03]} 31. Nc1 {[%emt 0:00:20]} b5 {[%emt 0:00:29]} 32. c5 {[%emt 0:00:29]} a5 {[%emt 0:00:10]} 33. bxa5 {[%emt 0:00:07]} Bxc5 {[%emt 0:00:05]} 34. Bb3 {[%emt 0:00:04]} Bc8 {[%emt 0:00:24]} 35. Na2 {[%emt 0:00:47]} Nc6 {[%emt 0:00:36]} 36. Rc1 {[%emt 0:00:05]} Ba3 {[%emt 0:00:07]} 37. Rc2 {[%emt 0:00:22]} Be6 {[%emt 0:00:06]} 38. Bxe6 {[%emt 0:00:07]} Rxe6 {[%emt 0:00:01]} 39. Qb3 {[%emt 0:00:10]} Bf8 {[%emt 0:00:02]} 40. Rec1 {[%emt 0:00:25]} Ra8 {[%emt 0:02:21]} 41. Kh2 {[%emt 0:01:48]} Ra7 {[%emt 0:00:14]} 42. Rb1 {[%emt 0:00:15]} b4 {[%emt 0:00:22]} 43. Nxb4 {[%emt 0:01:32]} Nxa5 {[%emt 0:00:01]} 44. Qa2 {[%emt 0:00:07]} Rb6 {[%emt 0:00:07]} 45. Nxe5 {[%emt 0:00:10]} Bxb4 {[%emt 0:00:12]} 46. Bxb4 Rxb4 47. Rxb4 {[%emt 0:00:59]} Qxb4 {[%emt 0:00:06]} 48. Rb2 {[%emt 0:00:02]} Qd6 {[%emt 0:00:06]} 49. f4 {[%emt 0:00:01]} Nc6 {[%emt 0:00:05]} 0-1

[Event "ESP-ch Rapid 2018"]
[Site "Linares"]
[Date "2018.08.19"]
[Round "5"]
[White "Merario Alarcon, Andres"]
[Black "Cabrera Ruiz, Luis"]
[Result "1-0"]
[ECO "A00"]
[WhiteElo "2406"]
[BlackElo "2122"]
[Annotator "NA"]
[PlyCount "99"]
[EventDate "2018.08.19"]
[EventType "team-tourn"]
[EventCountry "ESP"]
[SourceTitle "playchess.com"]
[Source "ChessBase"]
[SourceQuality "1"]
[TimeControl "900+5"]

1. e3 {[%emt 0:00:05]} f5 {[%emt 0:00:23]} 2. Nf3 {[%emt 0:00:44]} Nf6 {[%emt 0:00:08]} 3. d4 {[%emt 0:00:02]} g6 {[%emt 0:00:09]} 4. c4 {[%emt 0:00:05]} Bg7 {[%emt 0:00:06]} 5. Be2 {[%emt 0:00:06]} O-O {[%emt 0:00:06]} 6. O-O {[%emt 0:00:04]} d6 {[%emt 0:00:04]} 7. b4 {[%emt 0:00:41]} c5 {[%emt 0:02:34]} 8. a3 {[%emt 0:00:57]} Ne4 {[%emt 0:00:20]} 9. Bb2 {[%emt 0:00:19]} Nd7 {[%emt 0:01:11]} 10. Qc2 {[%emt 0:00:19]} b6 {[%emt 0:00:45]} 11. dxc5 {[%emt 0:00:07]} bxc5 {[%emt 0:00:08]} 12. Bxg7 {[%emt 0:00:03]} Kxg7 {[%emt 0:00:02]} 13. b5 {[%emt 0:00:17]} e6 {[%emt 0:00:55]} 14. Nc3 {[%emt 0:00:16]} Ndf6 {[%emt 0:00:07]} 15. Rfd1 {[%emt 0:00:44]} Qa5 {[%emt 0:01:00]} 16. Nxe4 {[%emt 0:00:15]} Nxe4 {[%emt 0:00:03]} 17. Nd2 {[%emt 0:01:20]} Nf6 {[%emt 0:00:11]} 18. Nb3 {[%emt 0:00:14]} Qc7 {[%emt 0:00:02]} 19. Bf3 {[%emt 0:00:07]} Rb8 {[%emt 0:00:01]} 20. Rd3 {[%emt 0:00:13]} Bb7 {[%emt 0:00:21]} 21. Bxb7 {[%emt 0:00:02]} Rxb7 {[%emt 0:00:02]} 22. Rad1 {[%emt 0:00:02]} Rd8 {[%emt 0:00:14]} 23. Qc3 {[%emt 0:00:21]} Kf7 {[%emt 0:00:47]} 24. Na5 {[%emt 0:00:09]} Rb6 {[%emt 0:01:02]} 25. Nc6 {[%emt 0:00:03]} Rxc6 {[%emt 0:01:03]} 26. bxc6 {[%emt 0:00:03]} Qxc6 {[%emt 0:00:01]} 27. f3 {[%emt 0:00:08]} g5 {[%emt 0:00:08]} 28. Qa5 {[%emt 0:00:43]} Rd7 {[%emt 0:00:11]} 29. a4 {[%emt 0:01:11]} g4 {[%emt 0:00:06]} 30. Qb5 {[%emt 0:00:02]} Qxb5 {[%emt 0:01:20]} 31. axb5 {[%emt 0:00:01]} d5 {[%emt 0:00:01]} 32. Ra1 {[%emt 0:00:34]} Kg6 {[%emt 0:00:16]} 33. Rda3 {[%emt 0:01:57]} dxc4 {[%emt 0:00:06]} 34. Rxa7 {[%emt 0:00:02]} Rd2 {[%emt 0:00:01]} 35. R7a2 {[%emt 0:00:19]} Rd3 {[%emt 0:00:08]} 36. Rb1 {[%emt 0:01:03]} Rb3 {[%emt 0:00:17]} 37. Rab2 {[%emt 0:00:13]} Nd5 {[%emt 0:00:42]} 38. Rxb3 {[%emt 0:00:23]} cxb3 {[%emt 0:00:02]} 39. Rxb3 {[%emt 0:00:01]} c4 {[%emt 0:00:01]} 40. Rb1 {[%emt 0:00:16]} Nb6 {[%emt 0:00:13]} 41. Kf1 {[%emt 0:00:23]} gxf3 {[%emt 0:00:05]} 42. gxf3 {[%emt 0:00:01]} Kf6 {[%emt 0:00:01]} 43. Ra1 {[%emt 0:00:47]} Ke5 {[%emt 0:00:12]} 44. Ra6 {[%emt 0:00:36]} Nd5 {[%emt 0:00:09]} 45. Kf2 {[%emt 0:00:15]} Nb4 {[%emt 0:00:22]} 46. Ra4 {[%emt 0:00:22]} Nd3+ {[%emt 0:00:04]} 47. Ke2 {[%emt 0:00:05]} Kd5 {[%emt 0:00:01]} 48. b6 {[%emt 0:00:12]} Nc5 {[%emt 0:00:44]} 49. Ra5 {[%emt 0:00:02]} Kc6 {[%emt 0:00:01]} 50. Rxc5+ {[%emt 0:00:11] Kd5} 1-0